{"text_format":"3","workbook":"xlsx","n_sheets":8,"sheets":["Menu","Colab","Criterios","Aval","Dash1","Dash2","Instruções","Notas"],"not_rendered":{"charts":7,"images":8,"macros":1,"defined_names":10,"pivot_tables":2},"read":"whole","date_system":"1900"}

{"sheet":"Menu","index":0,"n_rows":26,"n_cols":7,"rows_kept":26,"merged":[[25,4,25,5],[25,6,25,14]]}
{"$rows_empty":25}
[{"$nulls":4},"Empresa:",null,"Empresa ABCDE"]

{"sheet":"Colab","index":1,"n_rows":20,"n_cols":4,"rows_kept":20,"merged":[[9,2,9,3],[11,1,11,3]]}
{"$rows_empty":9}
[null,"Empresa:",{"$f":"Menu!G26","v":"Empresa ABCDE"}]
[]
[null,"CADASTRO DE COLABORADORES\nInsira os dados dos seus colaboradores."]
[null,"Colaborador","Área","Cargo"]
[null,"José Lins","Administrativo","Assistente Administrativo"]
[null,"Evandro Alves","Produção","Auxiliar de PCP"]
[null,"Juliano Fagundes","Almoxarifado","Almoxarife"]
[null,"Luciana Almeida"]
[null,"Fabiana Rosamaria"]
[null,"Márcia Oliveira"]
[null,"Rosângela Badaró"]

{"sheet":"Criterios","index":2,"n_rows":19,"n_cols":3,"rows_kept":19,"merged":[[9,2,9,3],[11,1,11,3],[12,1,12,3],[13,1,13,3],[14,1,14,3],[15,1,15,3],[16,1,16,3],[17,1,17,3],[18,1,18,3],[19,1,19,3],[20,1,20,3],[21,1,21,3],[22,1,22,3]]}
{"$rows_empty":9}
[null,"Empresa:",{"$f":"Menu!G26","v":"Empresa ABCDE"}]
[]
[null,"CADASTRO DE PERGUNTAS\nInsira as perguntas relevantes para o clima organizacional da sua empresa."]
[null,"Critérios"]
[null,"Você considera o ambiente de trabalho adequado?"]
[null,"O seu salário está adequado com sua função em comparação com o mercado de trabalho?"]
[null,"Qual o nível de satisfação em relação a comunicação interna da empresa?"]
[null,"Qual o nível de satisfação em relação a carga de trabalho diária?"]
[null,"Qual o nível de satisfação em relação ao relacionamento profissional com seus superiores?"]
[null,"Qual o nível de satisfação em relação ao relacionamento profissional com seus colegas de trabalho?"]

{"sheet":"Aval","index":3,"n_rows":78,"n_cols":17,"rows_kept":78,"merged":[[9,2,9,6],[11,1,11,11]]}
{"$rows_empty":9}
[null,"Empresa:",{"$f":"Menu!G26","v":"Empresa ABCDE"}]
[]
[null,"CLIMA ORGANIZACIONAL\nInsira as respostas de cada pergunta do clima organizacional."]
[null,"Colaborador",{"$f":"TRANSPOSE(Criterios!B14:B23)","v":"Você considera o ambiente de trabalho adequado?"},"O seu salário está adequado com sua função em comparação com o mercado de trabalho?","Qual o nível de satisfação em relação a comunicação interna da empresa?","Qual o nível de satisfação em relação a carga de trabalho diária?","Qual o nível de satisfação em relação ao relacionamento profissional com seus superiores?","Qual o nível de satisfação em relação ao relacionamento profissional com seus colegas de trabalho?",0,0,0,0,null,"Muito Insatisfeito","Insatisfeito","Satisfeito","Muito Satisfeito"]
[null,{"$f":"Colab!B14","v":"José Lins"},"Muito Satisfeito","Satisfeito","Insatisfeito","Muito Insatisfeito","Satisfeito","Insatisfeito",{"$nulls":5},{"$f":"COUNTIF($C14:$L14,N$13)","v":1},{"$f":"COUNTIF($C14:$L14,O$13)","v":2},2,1]
[null,{"$f":"Colab!B15","v":"Evandro Alves"},"Satisfeito","Satisfeito","Satisfeito","Satisfeito","Satisfeito","Muito Insatisfeito",{"$nulls":5},{"$f":"COUNTIF($C15:$L15,N$13)","v":1},0,5,0]
[null,{"$f":"Colab!B16","v":"Juliano Fagundes"},"Muito Insatisfeito","Insatisfeito","Muito Satisfeito","Muito Insatisfeito","Insatisfeito","Satisfeito",{"$nulls":5},2,2,1,1]
[null,{"$f":"Colab!B17","v":"Luciana Almeida"},"Satisfeito",{"$nulls":10},0,0,1,0]
[null,{"$f":"Colab!B18","v":"Fabiana Rosamaria"},"Satisfeito",{"$nulls":10},0,0,1,0]
[null,{"$f":"Colab!B19","v":"Márcia Oliveira"},"Insatisfeito",{"$nulls":10},0,1,0,0]
[null,{"$f":"Colab!B20","v":"Rosângela Badaró"},"Muito Satisfeito",{"$nulls":10},0,0,0,1]
[null,{"$f":"Colab!B21","v":0},{"$nulls":11},0,0,0,0]
[null,{"$f":"Colab!B22","v":0},{"$nulls":11},0,0,0,0]
[null,{"$f":"Colab!B23","v":0},{"$nulls":11},0,0,0,0]
[null,{"$f":"Colab!B24","v":0},{"$nulls":11},0,0,0,0]
[null,{"$f":"Colab!B25","v":0},{"$nulls":11},0,0,0,0]
[null,{"$f":"Colab!B26","v":0},{"$nulls":11},0,0,0,0]
[null,{"$f":"Colab!B27","v":0},{"$nulls":11},0,0,0,0]
[null,{"$f":"Colab!B28","v":0},{"$nulls":11},0,0,0,0]
[null,{"$f":"Colab!B29","v":0},{"$nulls":11},0,0,0,0]
[null,{"$f":"Colab!B30","v":0},{"$nulls":11},0,0,0,0]
[null,{"$f":"Colab!B31","v":0},{"$nulls":11},0,0,0,0]
[null,{"$f":"Colab!B32","v":0},{"$nulls":11},0,0,0,0]
[null,{"$f":"Colab!B33","v":0},{"$nulls":11},0,0,0,0]
[null,{"$f":"Colab!B34","v":0},{"$nulls":11},0,0,0,0]
[null,{"$f":"Colab!B35","v":0},{"$nulls":11},0,0,0,0]
[null,{"$f":"Colab!B36","v":0},{"$nulls":11},0,0,0,0]
[null,{"$f":"Colab!B37","v":0},{"$nulls":11},0,0,0,0]
[null,{"$f":"Colab!B38","v":0},{"$nulls":11},0,0,0,0]
[null,{"$f":"Colab!B39","v":0},{"$nulls":11},0,0,0,0]
[null,{"$f":"Colab!B40","v":0},{"$nulls":11},0,0,0,0]
[null,{"$f":"Colab!B41","v":0},{"$nulls":11},0,0,0,0]
[null,{"$f":"Colab!B42","v":0},{"$nulls":11},0,0,0,0]
[null,{"$f":"Colab!B43","v":0},{"$nulls":11},0,0,0,0]
[null,{"$f":"Colab!B44","v":0},{"$nulls":11},0,0,0,0]
[null,{"$f":"Colab!B45","v":0},{"$nulls":11},0,0,0,0]
[null,{"$f":"Colab!B46","v":0},{"$nulls":11},0,0,0,0]
[null,{"$f":"Colab!B47","v":0},{"$nulls":11},{"$f":"COUNTIF($C47:$L47,N$13)","v":0},0,0,0]
[null,{"$f":"Colab!B48","v":0},{"$nulls":11},0,0,0,0]
[null,{"$f":"Colab!B49","v":0},{"$nulls":11},0,0,0,0]
[null,{"$f":"Colab!B50","v":0},{"$nulls":11},0,0,0,0]
[null,{"$f":"Colab!B51","v":0},{"$nulls":11},0,0,0,0]
[null,{"$f":"Colab!B52","v":0},{"$nulls":11},0,0,0,0]
[null,{"$f":"Colab!B53","v":0},{"$nulls":11},0,0,0,0]
[null,{"$f":"Colab!B54","v":0},{"$nulls":11},0,0,0,0]
[null,{"$f":"Colab!B55","v":0},{"$nulls":11},0,0,0,0]
[null,{"$f":"Colab!B56","v":0},{"$nulls":11},0,0,0,0]
[null,{"$f":"Colab!B57","v":0},{"$nulls":11},0,0,0,0]
[null,{"$f":"Colab!B58","v":0},{"$nulls":11},0,0,0,0]
[null,{"$f":"Colab!B59","v":0},{"$nulls":11},0,0,0,0]
[null,{"$f":"Colab!B60","v":0},{"$nulls":11},0,0,0,0]
[null,{"$f":"Colab!B61","v":0},{"$nulls":11},0,0,0,0]
[null,{"$f":"Colab!B62","v":0},{"$nulls":11},0,0,0,0]
[null,{"$f":"Colab!B63","v":0},{"$nulls":11},0,0,0,0]
[]
[null,"Muito Insatisfeito",{"$f":"COUNTIF(C$14:C$63,$B65)","v":{"v":1,"d":"1.00"}},{"$f":"COUNTIF(D$14:D$63,$B65)","v":{"v":0,"d":"0.00"}},{"v":0,"d":"0.00"},{"v":2,"d":"2.00"},{"v":0,"d":"0.00"},{"v":1,"d":"1.00"},{"v":0,"d":"0.00"},{"v":0,"d":"0.00"},{"v":0,"d":"0.00"},{"v":0,"d":"0.00"},{"$f":"SUM(C65:L65)","v":{"v":4,"d":"4.00"}}]
[null,"Insatisfeito",{"$f":"COUNTIF(C$14:C$63,$B66)","v":{"v":1,"d":"1.00"}},{"v":1,"d":"1.00"},{"v":1,"d":"1.00"},{"v":0,"d":"0.00"},{"v":1,"d":"1.00"},{"v":1,"d":"1.00"},{"v":0,"d":"0.00"},{"v":0,"d":"0.00"},{"v":0,"d":"0.00"},{"v":0,"d":"0.00"},{"$f":"SUM(C66:L66)","v":{"v":5,"d":"5.00"}}]
[null,"Satisfeito",{"v":3,"d":"3.00"},{"v":2,"d":"2.00"},{"v":1,"d":"1.00"},{"v":1,"d":"1.00"},{"v":2,"d":"2.00"},{"v":1,"d":"1.00"},{"v":0,"d":"0.00"},{"v":0,"d":"0.00"},{"v":0,"d":"0.00"},{"v":0,"d":"0.00"},{"v":10,"d":"10.00"}]
[null,"Muito Satisfeito",{"v":2,"d":"2.00"},{"v":0,"d":"0.00"},{"v":1,"d":"1.00"},{"v":0,"d":"0.00"},{"v":0,"d":"0.00"},{"v":0,"d":"0.00"},{"v":0,"d":"0.00"},{"v":0,"d":"0.00"},{"v":0,"d":"0.00"},{"v":0,"d":"0.00"},{"v":3,"d":"3.00"}]
[]
[null,"Pesos",{"$f":"SUM(C65*1,C66*2,C67*3,C68*4)","v":20},8,9,5,8,6,0,0,0,0]
[]
[null,"Muito Satisfeito",{"$f":"COUNTIF(C$14:C$63,$B72)","v":2},{"$f":"COUNTIF(D$14:D$63,$B72)","v":0},1,0,0,0,0,0,0,0]
[null,"Satisfeito",{"$f":"COUNTIF(C$14:C$63,$B73)","v":3},2,1,1,2,1,0,0,0,0]
[null,"Insatisfeito",{"$f":"COUNTIF(C$14:C$63,$B74)","v":1},1,1,0,1,1,0,0,0,0]
[null,"Muito Insatisfeito",{"$f":"COUNTIF(C$14:C$63,$B75)","v":1},0,0,2,0,1,0,0,0,0]
[]
[null,"Colaborador Selec.:",2,3,4,5,6,7,8,9,10,11]
[null,{"$f":"Dash1!E13","v":"Juliano Fagundes"},{"$f":"VLOOKUP($B$78,$B$14:$L$63,C77,0)","v":"Muito Insatisfeito"},{"$f":"VLOOKUP($B$78,$B$14:$L$63,D77,0)","v":"Insatisfeito"},"Muito Satisfeito","Muito Insatisfeito","Insatisfeito","Satisfeito",0,0,0,0]

{"sheet":"Dash1","index":4,"n_rows":38,"n_cols":6,"rows_kept":38,"merged":[[10,1,10,2],[10,3,10,20],[12,4,12,7]]}
{"$rows_empty":10}
[null,"Empresa:",null,{"$f":"Menu!G26","v":"Empresa ABCDE"}]
[]
[null,"Selecione o Colaborador:",null,null,"Juliano Fagundes"]
[]
[null,null,"Muito Insatisfeito","Insatisfeito","Satisfeito","Muito Satisfeito"]
[null,{"$f":"TRANSPOSE(_xlfn.ANCHORARRAY(Aval!C13))","v":"Você considera o ambiente de trabalho adequado?"},{"$f":"IF(Aval!$C$78=Dash1!C$15,1,NA())","v":1},{"$f":"IF(Aval!$C$78=Dash1!D$15,1,NA())","v":{"$error":"#N/A"}},{"$f":"IF(Aval!$C$78=Dash1!E$15,1,NA())","v":{"$error":"#N/A"}},{"$f":"IF(Aval!$C$78=Dash1!F$15,1,NA())","v":{"$error":"#N/A"}}]
[null,"O seu salário está adequado com sua função em comparação com o mercado de trabalho?",{"$f":"IF(Aval!$D$78=Dash1!C$15,1,NA())","v":{"$error":"#N/A"}},{"$f":"IF(Aval!$D$78=Dash1!D$15,1,NA())","v":1},{"$f":"IF(Aval!$D$78=Dash1!E$15,1,NA())","v":{"$error":"#N/A"}},{"$f":"IF(Aval!$D$78=Dash1!F$15,1,NA())","v":{"$error":"#N/A"}}]
[null,"Qual o nível de satisfação em relação a comunicação interna da empresa?",{"$f":"IF(Aval!$E$78=Dash1!C$15,1,NA())","v":{"$error":"#N/A"}},{"$f":"IF(Aval!$E$78=Dash1!D$15,1,NA())","v":{"$error":"#N/A"}},{"$f":"IF(Aval!$E$78=Dash1!E$15,1,NA())","v":{"$error":"#N/A"}},{"$f":"IF(Aval!$E$78=Dash1!F$15,1,NA())","v":1}]
[null,"Qual o nível de satisfação em relação a carga de trabalho diária?",{"$f":"IF(Aval!$F$78=Dash1!C$15,1,NA())","v":1},{"$f":"IF(Aval!$F$78=Dash1!D$15,1,NA())","v":{"$error":"#N/A"}},{"$f":"IF(Aval!$F$78=Dash1!E$15,1,NA())","v":{"$error":"#N/A"}},{"$f":"IF(Aval!$F$78=Dash1!F$15,1,NA())","v":{"$error":"#N/A"}}]
[null,"Qual o nível de satisfação em relação ao relacionamento profissional com seus superiores?",{"$f":"IF(Aval!$G$78=Dash1!C$15,1,NA())","v":{"$error":"#N/A"}},{"$f":"IF(Aval!$G$78=Dash1!D$15,1,NA())","v":1},{"$f":"IF(Aval!$G$78=Dash1!E$15,1,NA())","v":{"$error":"#N/A"}},{"$f":"IF(Aval!$G$78=Dash1!F$15,1,NA())","v":{"$error":"#N/A"}}]
[null,"Qual o nível de satisfação em relação ao relacionamento profissional com seus colegas de trabalho?",{"$f":"IF(Aval!$H$78=Dash1!C$15,1,NA())","v":{"$error":"#N/A"}},{"$f":"IF(Aval!$H$78=Dash1!D$15,1,NA())","v":{"$error":"#N/A"}},{"$f":"IF(Aval!$H$78=Dash1!E$15,1,NA())","v":1},{"$f":"IF(Aval!$H$78=Dash1!F$15,1,NA())","v":{"$error":"#N/A"}}]
[null,0,{"$f":"IF(Aval!$I$78=Dash1!C$15,1,NA())","v":{"$error":"#N/A"}},{"$f":"IF(Aval!$I$78=Dash1!D$15,1,NA())","v":{"$error":"#N/A"}},{"$f":"IF(Aval!$I$78=Dash1!E$15,1,NA())","v":{"$error":"#N/A"}},{"$f":"IF(Aval!$I$78=Dash1!F$15,1,NA())","v":{"$error":"#N/A"}}]
[null,0,{"$f":"IF(Aval!$J$78=Dash1!C$15,1,NA())","v":{"$error":"#N/A"}},{"$f":"IF(Aval!$J$78=Dash1!D$15,1,NA())","v":{"$error":"#N/A"}},{"$f":"IF(Aval!$J$78=Dash1!E$15,1,NA())","v":{"$error":"#N/A"}},{"$f":"IF(Aval!$J$78=Dash1!F$15,1,NA())","v":{"$error":"#N/A"}}]
[null,0,{"$f":"IF(Aval!$K$78=Dash1!C$15,1,NA())","v":{"$error":"#N/A"}},{"$f":"IF(Aval!$K$78=Dash1!D$15,1,NA())","v":{"$error":"#N/A"}},{"$f":"IF(Aval!$K$78=Dash1!E$15,1,NA())","v":{"$error":"#N/A"}},{"$f":"IF(Aval!$K$78=Dash1!F$15,1,NA())","v":{"$error":"#N/A"}}]
[null,0,{"$f":"IF(Aval!$L$78=Dash1!C$15,1,NA())","v":{"$error":"#N/A"}},{"$f":"IF(Aval!$L$78=Dash1!D$15,1,NA())","v":{"$error":"#N/A"}},{"$f":"IF(Aval!$L$78=Dash1!E$15,1,NA())","v":{"$error":"#N/A"}},{"$f":"IF(Aval!$L$78=Dash1!F$15,1,NA())","v":{"$error":"#N/A"}}]
{"$rows_empty":9}
[null,"Muito Insatisfeito",{"$f":"COUNTIF(Aval!$C$78:$L$78,B35)","v":2}]
[null,"Insatisfeito",{"$f":"COUNTIF(Aval!$C$78:$L$78,B36)","v":2}]
[null,"Satisfeito",{"$f":"COUNTIF(Aval!$C$78:$L$78,B37)","v":1}]
[null,"Muito Satisfeito",{"$f":"COUNTIF(Aval!$C$78:$L$78,B38)","v":1}]

{"sheet":"Dash2","index":5,"n_rows":77,"n_cols":12,"rows_kept":77,"merged":[[10,1,10,2],[10,3,10,20],[31,4,31,13],[70,1,70,10],[70,11,70,20],[71,1,71,10],[71,11,71,20],[72,1,72,10],[72,11,72,20],[73,1,73,10],[73,11,73,20],[74,1,74,10],[74,11,74,20],[75,1,75,10],[75,11,75,20],[76,1,76,10],[76,11,76,20]]}
{"$rows_empty":10}
[null,"Empresa:",null,{"$f":"Menu!G26","v":"Empresa ABCDE"}]
[]
[]
[]
[null,{"$f":"Aval!B65","v":"Muito Insatisfeito"},{"$f":"Aval!M65","v":4}]
[null,{"$f":"Aval!B66","v":"Insatisfeito"},{"$f":"Aval!M66","v":5}]
[null,{"$f":"Aval!B67","v":"Satisfeito"},{"$f":"Aval!M67","v":10}]
[null,{"$f":"Aval!B68","v":"Muito Satisfeito"},{"$f":"Aval!M68","v":3}]
{"$rows_empty":13}
[null,"Selecione a Pergunta:",null,null,"Você considera o ambiente de trabalho adequado?"]
[]
[null,{"$f":"Aval!B65","v":"Muito Insatisfeito"},{"$f":"HLOOKUP($E$32,Aval!$C$13:$Q$75,D34,0)","v":1},53]
[null,{"$f":"Aval!B66","v":"Insatisfeito"},{"$f":"HLOOKUP($E$32,Aval!$C$13:$Q$75,D35,0)","v":1},54]
[null,{"$f":"Aval!B67","v":"Satisfeito"},{"$f":"HLOOKUP($E$32,Aval!$C$13:$Q$75,D36,0)","v":3},55]
[null,{"$f":"Aval!B68","v":"Muito Satisfeito"},{"$f":"HLOOKUP($E$32,Aval!$C$13:$Q$75,D37,0)","v":2},56]
{"$rows_empty":14}
[null,null,"Muito Insatisfeito","Insatisfeito","Satisfeito","Muito Satisfeito"]
[null,{"$f":"TRANSPOSE(_xlfn.ANCHORARRAY(Aval!C13))","v":"Você considera o ambiente de trabalho adequado?"},{"$f":"TRANSPOSE(Aval!C75:L75)","v":1},{"$f":"TRANSPOSE(Aval!C74:L74)","v":1},{"$f":"TRANSPOSE(Aval!C73:L73)","v":3},{"$f":"TRANSPOSE(Aval!C72:L72)","v":2}]
[null,"O seu salário está adequado com sua função em comparação com o mercado de trabalho?",0,1,2,0]
[null,"Qual o nível de satisfação em relação a comunicação interna da empresa?",0,1,1,1]
[null,"Qual o nível de satisfação em relação a carga de trabalho diária?",2,0,1,0]
[null,"Qual o nível de satisfação em relação ao relacionamento profissional com seus superiores?",0,1,2,0]
[null,"Qual o nível de satisfação em relação ao relacionamento profissional com seus colegas de trabalho?",1,1,1,0]
[null,0,0,0,0,0]
[null,0,0,0,0,0]
[null,0,0,0,0,0]
[null,0,0,0,0,0]
{"$rows_empty":8}
[null,"TOP 5 - MELHORES AVALIADOS",{"$nulls":9},"TOP 5 - PIORES AVALIADOS"]
[null,"Pergunta:",{"$nulls":9},"Pergunta:"]
[null,{"$f":"IF(Notas!F2=0,\"\",Notas!F2)","v":"Você considera o ambiente de trabalho adequado?"},{"$nulls":9},{"$f":"IF(Notas!J2=0,\"\",Notas!J2)","v":"Qual o nível de satisfação em relação ao relacionamento profissional com seus colegas de trabalho?"}]
[null,{"$f":"IF(Notas!F3=0,\"\",Notas!F3)","v":"Qual o nível de satisfação em relação a comunicação interna da empresa?"},{"$nulls":9},{"$f":"IF(Notas!J3=0,\"\",Notas!J3)","v":"Qual o nível de satisfação em relação ao relacionamento profissional com seus superiores?"}]
[null,{"$f":"IF(Notas!F4=0,\"\",Notas!F4)","v":"O seu salário está adequado com sua função em comparação com o mercado de trabalho?"},{"$nulls":9},{"$f":"IF(Notas!J4=0,\"\",Notas!J4)","v":"O seu salário está adequado com sua função em comparação com o mercado de trabalho?"}]
[null,{"$f":"IF(Notas!F5=0,\"\",Notas!F5)","v":"Qual o nível de satisfação em relação ao relacionamento profissional com seus superiores?"},{"$nulls":9},{"$f":"IF(Notas!J5=0,\"\",Notas!J5)","v":"Você considera o ambiente de trabalho adequado?"}]
[null,{"$f":"IF(Notas!F6=0,\"\",Notas!F6)","v":"Qual o nível de satisfação em relação ao relacionamento profissional com seus colegas de trabalho?"},{"$nulls":9},{"$f":"IF(Notas!J6=0,\"\",Notas!J6)","v":"Qual o nível de satisfação em relação a comunicação interna da empresa?"}]

{"sheet":"Instruções","index":6,"n_rows":0,"n_cols":0,"rows_kept":0}

{"sheet":"Notas","index":7,"n_rows":11,"n_cols":11,"rows_kept":11}
["Pergunta","Nota",{"$nulls":3},"Rótulos de Linha","Soma de Nota",null,null,"Rótulos de Linha","Soma de Nota"]
[{"$f":"Criterios!B14","v":"Você considera o ambiente de trabalho adequado?"},{"$f":"TRANSPOSE(Aval!C70:L70)","v":20},{"$nulls":3},"Você considera o ambiente de trabalho adequado?",9,null,null,"Qual o nível de satisfação em relação ao relacionamento profissional com seus colegas de trabalho?",6]
[{"$f":"Criterios!B15","v":"O seu salário está adequado com sua função em comparação com o mercado de trabalho?"},8,{"$nulls":3},"Qual o nível de satisfação em relação a comunicação interna da empresa?",9,null,null,"Qual o nível de satisfação em relação ao relacionamento profissional com seus superiores?",8]
[{"$f":"Criterios!B16","v":"Qual o nível de satisfação em relação a comunicação interna da empresa?"},9,{"$nulls":3},"O seu salário está adequado com sua função em comparação com o mercado de trabalho?",8,null,null,"O seu salário está adequado com sua função em comparação com o mercado de trabalho?",8]
[{"$f":"Criterios!B17","v":"Qual o nível de satisfação em relação a carga de trabalho diária?"},5,{"$nulls":3},"Qual o nível de satisfação em relação ao relacionamento profissional com seus superiores?",8,null,null,"Você considera o ambiente de trabalho adequado?",9]
[{"$f":"Criterios!B18","v":"Qual o nível de satisfação em relação ao relacionamento profissional com seus superiores?"},8,{"$nulls":3},"Qual o nível de satisfação em relação ao relacionamento profissional com seus colegas de trabalho?",6,null,null,"Qual o nível de satisfação em relação a comunicação interna da empresa?",9]
[{"$f":"Criterios!B19","v":"Qual o nível de satisfação em relação ao relacionamento profissional com seus colegas de trabalho?"},6]
[{"$f":"Criterios!B20","v":0},0]
[{"$f":"Criterios!B21","v":0},0]
[{"$f":"Criterios!B22","v":0},0]
[{"$f":"Criterios!B23","v":0},0]